[Event "*** SCC Grand Prix: Titled Tuesday Blitz"]
[Site "Chess.com"]
[Date "2020.06.09"]
[Round "7"]
[White "ChelsieMonica"]
[Black "CzechmVIII"]
[Result "1-0"]
[WhiteElo "2370"]
[BlackElo "2172"]
[TimeControl "180+1"]
[EndTime "10:18:54 PDT"]
[Termination "ChelsieMonica won by resignation"]

1. c4 {[%clk 0:03:00.9]} 1... Nf6 {[%clk 0:02:59.6]} 2. d4 {[%clk 0:02:45.4]}
2... c5 {[%clk 0:02:59]} 3. Nf3 {[%clk 0:02:46.3]} 3... cxd4 {[%clk 0:02:58.6]}
4. Nxd4 {[%clk 0:02:47.2]} 4... e5 {[%clk 0:02:58.7]} 5. Nc2 {[%clk 0:02:46.4]}
5... b5 {[%clk 0:02:57.8]} 6. e3 {[%clk 0:02:45.3]} 6... bxc4 {[%clk 0:02:54.8]}
7. Bxc4 {[%clk 0:02:46.2]} 7... d5 {[%clk 0:02:54.2]} 8. Be2 {[%clk 0:02:45.4]}
8... Bd6 {[%clk 0:02:47.5]} 9. O-O {[%clk 0:02:46.3]} 9... O-O {[%clk
0:02:46.2]} 10. Nc3 {[%clk 0:02:44.1]} 10... Bb7 {[%clk 0:02:44.3]} 11. Bf3
{[%clk 0:02:41.7]} 11... Bc7 {[%clk 0:02:23.5]} 12. g3 {[%clk 0:02:27.5]} 12...
Na6 {[%clk 0:02:05.1]} 13. Bg2 {[%clk 0:02:18.5]} 13... Rb8 {[%clk 0:01:55]} 14.
b3 {[%clk 0:02:12.2]} 14... Nc5 {[%clk 0:01:49.5]} 15. Ba3 {[%clk 0:02:04.8]}
15... Bb6 {[%clk 0:01:44.2]} 16. Bxc5 {[%clk 0:02:02.3]} 16... Bxc5 {[%clk
0:01:43.6]} 17. Na4 {[%clk 0:02:03.2]} 17... Bd6 {[%clk 0:01:35.6]} 18. Nc3
{[%clk 0:01:53]} 18... Bc7 {[%clk 0:01:30.4]} 19. Rc1 {[%clk 0:01:36.6]} 19...
Qd7 {[%clk 0:01:26.8]} 20. Qe2 {[%clk 0:01:10.6]} 20... Rbd8 {[%clk 0:01:19.1]}
21. Rfd1 {[%clk 0:00:53.5]} 21... Qe6 {[%clk 0:01:07.3]} 22. Na4 {[%clk
0:00:49.6]} 22... Bd6 {[%clk 0:00:58.3]} 23. Ne1 {[%clk 0:00:46.8]} 23... Rc8
{[%clk 0:00:39.4]} 24. Qb5 {[%clk 0:00:27.6]} 24... Rxc1 {[%clk 0:00:31]} 25.
Rxc1 {[%clk 0:00:25.1]} 25... Ba8 {[%clk 0:00:31.2]} 26. Nd3 {[%clk 0:00:21.8]}
26... Rb8 {[%clk 0:00:23.6]} 27. Ndc5 {[%clk 0:00:08.7]} 27... Rxb5 {[%clk
0:00:18.9]} 28. Nxe6 {[%clk 0:00:08.4]} 28... fxe6 {[%clk 0:00:19.3]} 29. Rc8+
{[%clk 0:00:07.7]} 29... Kf7 {[%clk 0:00:18.9]} 30. Rxa8 {[%clk 0:00:08.6]}
30... e4 {[%clk 0:00:17.1]} 31. Rxa7+ {[%clk 0:00:07.9]} 31... Kg6 {[%clk
0:00:16.5]} 32. Bf1 {[%clk 0:00:08.3]} 32... Rb8 {[%clk 0:00:15.3]} 33. Ra6
{[%clk 0:00:08.3]} 33... Be5 {[%clk 0:00:14.5]} 34. Rxe6 {[%clk 0:00:08.2]}
34... Ba1 {[%clk 0:00:14.1]} 35. Rc6 {[%clk 0:00:08.8]} 35... Rd8 {[%clk
0:00:14]} 36. Rc1 {[%clk 0:00:09.5]} 36... Be5 {[%clk 0:00:13]} 37. Rd1 {[%clk
0:00:10.4]} 37... d4 {[%clk 0:00:13.1]} 38. Nc5 {[%clk 0:00:10.7]} 38... d3
{[%clk 0:00:12.2]} 39. f3 {[%clk 0:00:10.5]} 39... exf3 {[%clk 0:00:11.3]} 40.
Bxd3+ {[%clk 0:00:10.3]} 40... Kf7 {[%clk 0:00:09]} 41. Bc2 {[%clk 0:00:11.2]}
41... Bc3 {[%clk 0:00:08.9]} 42. Rxd8 {[%clk 0:00:10.8]} 1-0

[Event "*** SCC Grand Prix: Titled Tuesday Blitz"]
[Site "Chess.com"]
[Date "2020.06.09"]
[Round "7"]
[White "Gareth-Bale11"]
[Black "SamuelGhimpu2003"]
[Result "1/2-1/2"]
[WhiteElo "2781"]
[BlackElo "2613"]
[TimeControl "180+1"]
[EndTime "10:18:57 PDT"]
[Termination "Game drawn by agreement"]

1. d4 {[%clk 0:02:59.2]} 1... Nf6 {[%clk 0:02:57.6]} 2. c4 {[%clk 0:02:59.3]}
2... g6 {[%clk 0:02:56.3]} 3. Nc3 {[%clk 0:02:58.4]} 3... d5 {[%clk 0:02:56.2]}
4. Bg5 {[%clk 0:02:58.1]} 4... Ne4 {[%clk 0:02:56]} 5. Bh4 {[%clk 0:02:58.4]}
5... Nxc3 {[%clk 0:02:56]} 6. bxc3 {[%clk 0:02:59.1]} 6... dxc4 {[%clk
0:02:56.9]} 7. e3 {[%clk 0:02:59.2]} 7... Be6 {[%clk 0:02:54.6]} 8. Nh3 {[%clk
0:02:57.9]} 8... Bxh3 {[%clk 0:02:46.7]} 9. gxh3 {[%clk 0:02:55.4]} 9... Qd7
{[%clk 0:02:47.6]} 10. Rb1 {[%clk 0:02:48.4]} 10... c5 {[%clk 0:02:41.6]} 11.
Bg2 {[%clk 0:02:41.4]} 11... Nc6 {[%clk 0:02:40.4]} 12. O-O {[%clk 0:02:38.8]}
12... Bg7 {[%clk 0:02:39.3]} 13. dxc5 {[%clk 0:02:35.4]} 13... Qxd1 {[%clk
0:02:13.3]} 14. Rfxd1 {[%clk 0:02:26]} 14... O-O {[%clk 0:01:49]} 15. Rxb7
{[%clk 0:02:23.1]} 15... Rac8 {[%clk 0:01:49.6]} 16. Rbb1 {[%clk 0:01:22.8]}
16... Rfe8 {[%clk 0:01:31.5]} 17. Bd5 {[%clk 0:01:15.3]} 17... Ne5 {[%clk
0:01:20.7]} 18. Rb5 {[%clk 0:00:59.4]} 18... Nd3 {[%clk 0:01:16.5]} 19. Bxc4
{[%clk 0:00:56.6]} 19... Nxc5 {[%clk 0:01:16.2]} 20. Bd5 {[%clk 0:00:39.3]}
20... Bxc3 {[%clk 0:01:01.2]} 21. Kg2 {[%clk 0:00:39.2]} 21... a6 {[%clk
0:00:42.3]} 22. Rbb1 {[%clk 0:00:30.3]} 22... e6 {[%clk 0:00:35.7]} 23. Bf3
{[%clk 0:00:28.5]} 23... Be5 {[%clk 0:00:34.3]} 24. Rb6 {[%clk 0:00:23.8]} 24...
Rb8 {[%clk 0:00:31]} 25. Rc6 {[%clk 0:00:23.6]} 25... Rec8 {[%clk 0:00:28.8]}
26. Rc1 {[%clk 0:00:17]} 26... Rxc6 {[%clk 0:00:24.9]} 27. Bxc6 {[%clk
0:00:17.9]} 27... Nd3 {[%clk 0:00:24.3]} 28. Rc4 {[%clk 0:00:17.8]} 28... Nb4
{[%clk 0:00:24]} 29. Bf3 {[%clk 0:00:12.3]} 29... Nxa2 {[%clk 0:00:24.1]} 30.
Ra4 {[%clk 0:00:12.4]} 30... Nb4 {[%clk 0:00:24.4]} 31. Be2 {[%clk 0:00:12.5]}
31... Kg7 {[%clk 0:00:20.5]} 32. Bxa6 {[%clk 0:00:10.2]} 32... Nxa6 {[%clk
0:00:21.4]} 33. Rxa6 {[%clk 0:00:11.1]} 33... Bf6 {[%clk 0:00:22]} 34. Bg3
{[%clk 0:00:10.8]} 34... Rb2 {[%clk 0:00:19.9]} 35. Ra8 {[%clk 0:00:10.5]} 35...
h5 {[%clk 0:00:19.6]} 36. Bd6 {[%clk 0:00:09]} 36... Bh4 {[%clk 0:00:16.2]} 37.
Bg3 {[%clk 0:00:08.7]} 37... Bxg3 {[%clk 0:00:15.9]} 38. hxg3 {[%clk 0:00:06.8]}
38... Rb5 {[%clk 0:00:15.3]} 39. h4 {[%clk 0:00:06.9]} 1/2-1/2

[Event "*** SCC Grand Prix: Titled Tuesday Blitz"]
[Site "Chess.com"]
[Date "2020.06.09"]
[Round "7"]
[White "SARGISMV"]
[Black "BikingBrian"]
[Result "1/2-1/2"]
[WhiteElo "2413"]
[BlackElo "2304"]
[TimeControl "180+1"]
[EndTime "10:18:57 PDT"]
[Termination "Game drawn by repetition"]

1. c4 {[%clk 0:03:00.9]} 1... g6 {[%clk 0:02:59.7]} 2. Nf3 {[%clk 0:03:01.3]}
2... Bg7 {[%clk 0:02:59.6]} 3. Nc3 {[%clk 0:03:02.2]} 3... c5 {[%clk 0:02:59.8]}
4. h4 {[%clk 0:03:03.1]} 4... h5 {[%clk 0:02:56.9]} 5. d4 {[%clk 0:03:02.6]}
5... cxd4 {[%clk 0:02:56.7]} 6. Nxd4 {[%clk 0:03:03.5]} 6... Nc6 {[%clk
0:02:56.9]} 7. Nxc6 {[%clk 0:03:00.1]} 7... bxc6 {[%clk 0:02:52.4]} 8. Bg5
{[%clk 0:02:59.4]} 8... Nf6 {[%clk 0:02:52.2]} 9. Qd2 {[%clk 0:02:56.8]} 9... d6
{[%clk 0:02:51.6]} 10. Rd1 {[%clk 0:02:55.8]} 10... Be6 {[%clk 0:02:49.2]} 11.
b3 {[%clk 0:02:54.3]} 11... O-O {[%clk 0:02:30.1]} 12. g3 {[%clk 0:02:53.5]}
12... Nh7 {[%clk 0:02:15.8]} 13. Bh6 {[%clk 0:02:51.4]} 13... Qa5 {[%clk
0:02:12.9]} 14. Bxg7 {[%clk 0:02:50.8]} 14... Kxg7 {[%clk 0:02:13.8]} 15. Bg2
{[%clk 0:02:48.7]} 15... Rac8 {[%clk 0:02:10.8]} 16. O-O {[%clk 0:02:48.1]}
16... Nf6 {[%clk 0:02:10]} 17. Ne4 {[%clk 0:02:32.2]} 17... Qxd2 {[%clk
0:02:08.4]} 18. Rxd2 {[%clk 0:02:33.1]} 18... Nxe4 {[%clk 0:02:05.7]} 19. Bxe4
{[%clk 0:02:34]} 19... Rfd8 {[%clk 0:01:51.4]} 20. Rfd1 {[%clk 0:02:30.1]} 20...
a5 {[%clk 0:01:50.6]} 21. f4 {[%clk 0:02:21.9]} 21... a4 {[%clk 0:01:35.8]} 22.
Kf2 {[%clk 0:02:17]} 22... axb3 {[%clk 0:01:35.5]} 23. axb3 {[%clk 0:02:16.7]}
23... Rb8 {[%clk 0:01:32.2]} 24. c5 {[%clk 0:01:40.4]} 24... d5 {[%clk
0:01:26.8]} 25. Rd3 {[%clk 0:01:31.5]} 25... Rb4 {[%clk 0:01:23.2]} 26. Bf3
{[%clk 0:01:28.4]} 26... Rdb8 {[%clk 0:01:22.9]} 27. e4 {[%clk 0:01:23.2]} 27...
Rxb3 {[%clk 0:01:17.9]} 28. exd5 {[%clk 0:01:16.8]} 28... Rxd3 {[%clk
0:01:11.1]} 29. Rxd3 {[%clk 0:01:17.7]} 29... Bxd5 {[%clk 0:01:11.1]} 30. Bxd5
{[%clk 0:01:17.6]} 30... cxd5 {[%clk 0:01:10.6]} 31. Rxd5 {[%clk 0:01:18.5]}
31... Rb2+ {[%clk 0:01:06]} 32. Ke3 {[%clk 0:01:18.1]} 32... Rc2 {[%clk
0:01:06.4]} 33. Kd4 {[%clk 0:01:13.4]} 33... e6 {[%clk 0:00:51.7]} 34. Re5
{[%clk 0:01:09.2]} 34... Rc1 {[%clk 0:00:49.8]} 35. Re3 {[%clk 0:01:08.5]} 35...
Kf8 {[%clk 0:00:42.2]} 36. Rc3 {[%clk 0:01:00.5]} 36... Rxc3 {[%clk 0:00:32]}
37. Kxc3 {[%clk 0:01:01.4]} 37... Ke7 {[%clk 0:00:32.4]} 38. Kd4 {[%clk
0:00:53.1]} 38... f6 {[%clk 0:00:31.5]} 39. Kc4 {[%clk 0:00:49.3]} 39... Kd7
{[%clk 0:00:30.1]} 40. Kb5 {[%clk 0:00:49.1]} 40... Kc7 {[%clk 0:00:29.7]} 41.
c6 {[%clk 0:00:48.2]} 41... e5 {[%clk 0:00:23.9]} 42. fxe5 {[%clk 0:00:47.7]}
42... fxe5 {[%clk 0:00:24.8]} 43. Kc5 {[%clk 0:00:44.4]} 43... e4 {[%clk
0:00:25]} 44. Kd4 {[%clk 0:00:44.4]} 44... Kxc6 {[%clk 0:00:23.5]} 45. Kxe4
{[%clk 0:00:44.5]} 45... Kd6 {[%clk 0:00:23.9]} 46. Kf4 {[%clk 0:00:43.7]} 46...
Ke6 {[%clk 0:00:20.6]} 47. Kg5 {[%clk 0:00:35.1]} 47... Kf7 {[%clk 0:00:20.7]}
48. Kh6 {[%clk 0:00:23.6]} 48... Kf6 {[%clk 0:00:21]} 49. Kh7 {[%clk 0:00:23.6]}
49... Kf7 {[%clk 0:00:20.2]} 50. Kh6 {[%clk 0:00:21.9]} 50... Kf6 {[%clk
0:00:20.6]} 51. Kh7 {[%clk 0:00:21.8]} 51... Kf7 {[%clk 0:00:21]} 52. Kh8 {[%clk
0:00:22.2]} 52... Kf8 {[%clk 0:00:20.1]} 53. Kh7 {[%clk 0:00:21.3]} 53... Kf7
{[%clk 0:00:20.5]} 1/2-1/2

[Event "*** SCC Grand Prix: Titled Tuesday Blitz"]
[Site "Chess.com"]
[Date "2020.06.09"]
[Round "7"]
[White "Sam_ChessMood"]
[Black "DenLaz"]
[Result "1-0"]
[WhiteElo "2832"]
[BlackElo "2659"]
[TimeControl "180+1"]
[EndTime "10:18:59 PDT"]
[Termination "Sam_ChessMood won by resignation"]

1. e4 {[%clk 0:03:00.9]} 1... e5 {[%clk 0:02:58.6]} 2. Nf3 {[%clk 0:03:00.8]}
2... Nc6 {[%clk 0:02:59]} 3. Bb5 {[%clk 0:03:00.8]} 3... a6 {[%clk 0:02:59.5]}
4. Ba4 {[%clk 0:03:00.7]} 4... Nf6 {[%clk 0:02:59.8]} 5. O-O {[%clk 0:03:01]}
5... Be7 {[%clk 0:02:59.5]} 6. Re1 {[%clk 0:03:01.3]} 6... b5 {[%clk 0:03:00]}
7. Bb3 {[%clk 0:03:01.6]} 7... d6 {[%clk 0:03:00.6]} 8. c3 {[%clk 0:03:01.6]}
8... O-O {[%clk 0:03:01.1]} 9. h3 {[%clk 0:03:02.2]} 9... Bb7 {[%clk 0:03:00.8]}
10. d4 {[%clk 0:03:01.6]} 10... Re8 {[%clk 0:03:01.3]} 11. Nbd2 {[%clk
0:03:01.5]} 11... Bf8 {[%clk 0:03:01.4]} 12. a4 {[%clk 0:02:57.9]} 12... h6
{[%clk 0:03:00.7]} 13. Bc2 {[%clk 0:02:57.4]} 13... exd4 {[%clk 0:03:01]} 14.
cxd4 {[%clk 0:02:57.7]} 14... Nb4 {[%clk 0:03:00.8]} 15. Bb1 {[%clk 0:02:57.6]}
15... c5 {[%clk 0:03:01.3]} 16. d5 {[%clk 0:02:58]} 16... Nd7 {[%clk 0:03:01.9]}
17. Ra3 {[%clk 0:02:57.4]} 17... c4 {[%clk 0:03:02.3]} 18. axb5 {[%clk
0:02:43.2]} 18... axb5 {[%clk 0:02:59.6]} 19. Nd4 {[%clk 0:02:39]} 19... Rxa3
{[%clk 0:02:59.5]} 20. bxa3 {[%clk 0:02:38.6]} 20... Nd3 {[%clk 0:02:59.7]} 21.
Bxd3 {[%clk 0:02:38.9]} 21... cxd3 {[%clk 0:03:00.6]} 22. Bb2 {[%clk 0:02:00.1]}
22... Nc5 {[%clk 0:02:34]} 23. Nf5 {[%clk 0:01:37.3]} 23... g6 {[%clk 0:02:25]}
24. Ne3 {[%clk 0:01:35.1]} 24... Bg7 {[%clk 0:02:08.2]} 25. Bxg7 {[%clk
0:01:14.3]} 25... Kxg7 {[%clk 0:02:09.1]} 26. Ng4 {[%clk 0:01:14.6]} 26... h5
{[%clk 0:02:04.3]} 27. Qa1+ {[%clk 0:01:09.2]} 27... f6 {[%clk 0:02:04.5]} 28.
Nh2 {[%clk 0:01:06]} 28... Qa5 {[%clk 0:02:01]} 29. Nhf3 {[%clk 0:01:04.4]}
29... Ra8 {[%clk 0:01:39.8]} 30. Qb2 {[%clk 0:01:03.1]} 30... Qxa3 {[%clk
0:01:31.5]} 31. Qxb5 {[%clk 0:01:03]} 31... Qa6 {[%clk 0:01:29.7]} 32. Qb2
{[%clk 0:00:59.9]} 32... Qa2 {[%clk 0:01:05.2]} 33. Qb6 {[%clk 0:00:59.6]} 33...
Qa5 {[%clk 0:00:48.2]} 34. Rb1 {[%clk 0:00:53.7]} 34... Qxb6 {[%clk 0:00:45.6]}
35. Rxb6 {[%clk 0:00:53.8]} 35... Rd8 {[%clk 0:00:41.4]} 36. Nd4 {[%clk
0:00:50.4]} 36... f5 {[%clk 0:00:31.1]} 37. Ne6+ {[%clk 0:00:46.3]} 37... Nxe6
{[%clk 0:00:30.2]} 38. Rxb7+ {[%clk 0:00:46.7]} 38... Kf6 {[%clk 0:00:30.8]} 39.
dxe6 {[%clk 0:00:47.2]} 39... Rc8 {[%clk 0:00:29.8]} 40. Rb3 {[%clk 0:00:39.1]}
40... fxe4 {[%clk 0:00:27.5]} 41. Nxe4+ {[%clk 0:00:38.6]} 41... Ke5 {[%clk
0:00:26.9]} 42. Nd2 {[%clk 0:00:36.3]} 42... Kxe6 {[%clk 0:00:26.2]} 43. Rxd3
{[%clk 0:00:35.8]} 43... Rc1+ {[%clk 0:00:27.1]} 44. Kh2 {[%clk 0:00:34.2]}
44... Rd1 {[%clk 0:00:27.6]} 45. Kg3 {[%clk 0:00:31.1]} 45... d5 {[%clk
0:00:25.3]} 46. Kf3 {[%clk 0:00:31.1]} 46... g5 {[%clk 0:00:22.9]} 47. Ke2
{[%clk 0:00:26.6]} 47... Rg1 {[%clk 0:00:23.3]} 48. Nf3 {[%clk 0:00:23.9]} 48...
Rxg2 {[%clk 0:00:22.5]} 49. Kf1 {[%clk 0:00:24]} 1-0

[Event "*** SCC Grand Prix: Titled Tuesday Blitz"]
[Site "Chess.com"]
[Date "2020.06.09"]
[Round "7"]
[White "Vitor-Moraes"]
[Black "HElissalt"]
[Result "0-1"]
[WhiteElo "1957"]
[BlackElo "2203"]
[TimeControl "180+1"]
[EndTime "10:19:00 PDT"]
[Termination "HElissalt won by resignation"]

1. e4 {[%clk 0:03:00.7]} 1... d6 {[%clk 0:02:59.1]} 2. f4 {[%clk 0:02:59.7]}
2... Nf6 {[%clk 0:02:57]} 3. Nf3 {[%clk 0:03:00.1]} 3... c5 {[%clk 0:02:56.7]}
4. Nc3 {[%clk 0:02:58.4]} 4... Nc6 {[%clk 0:02:56.2]} 5. Bb5 {[%clk 0:02:57.5]}
5... Bg4 {[%clk 0:02:54.6]} 6. Bxc6+ {[%clk 0:02:55.6]} 6... bxc6 {[%clk
0:02:53.8]} 7. O-O {[%clk 0:02:55.8]} 7... g6 {[%clk 0:02:42.9]} 8. d3 {[%clk
0:02:56.1]} 8... Bg7 {[%clk 0:02:42]} 9. Qe1 {[%clk 0:02:56.6]} 9... Bxf3 {[%clk
0:02:41.1]} 10. Rxf3 {[%clk 0:02:56]} 10... O-O {[%clk 0:02:41.4]} 11. e5 {[%clk
0:02:38.6]} 11... Nd5 {[%clk 0:02:40.1]} 12. Nxd5 {[%clk 0:01:40.9]} 12... cxd5
{[%clk 0:02:39]} 13. Bd2 {[%clk 0:01:27.6]} 13... dxe5 {[%clk 0:02:18.1]} 14.
fxe5 {[%clk 0:01:25.7]} 14... Qd7 {[%clk 0:02:17.9]} 15. Qe2 {[%clk 0:01:03.6]}
15... Rab8 {[%clk 0:02:15.9]} 16. b3 {[%clk 0:01:02.9]} 16... Rb6 {[%clk
0:02:15.1]} 17. Re1 {[%clk 0:00:57.6]} 17... Re6 {[%clk 0:02:14.3]} 18. Qf2
{[%clk 0:00:54.8]} 18... Bxe5 {[%clk 0:01:29.1]} 19. Qxc5 {[%clk 0:00:44.4]}
19... Rc8 {[%clk 0:01:18.5]} 20. Qf2 {[%clk 0:00:43.7]} 20... Rxc2 {[%clk
0:01:17.4]} 21. Rxf7 {[%clk 0:00:43.5]} 21... Bf6 {[%clk 0:01:11.8]} 22. Rxf6
{[%clk 0:00:18.9]} 22... Rxf6 {[%clk 0:01:07]} 23. Qe2 {[%clk 0:00:19.2]} 23...
Kf7 {[%clk 0:01:00]} 24. Qe3 {[%clk 0:00:19.4]} 24... d4 {[%clk 0:00:50.6]} 25.
Qh6 {[%clk 0:00:15.4]} 25... Kg8 {[%clk 0:00:44.7]} 26. Bg5 {[%clk 0:00:12.6]}
26... Rff2 {[%clk 0:00:30.4]} 27. Rxe7 {[%clk 0:00:09.3]} 27... Rxg2+ {[%clk
0:00:29.2]} 28. Kh1 {[%clk 0:00:07.3]} 28... Rxh2+ {[%clk 0:00:20.3]} 29. Qxh2
{[%clk 0:00:08.2]} 29... Qd5+ {[%clk 0:00:11.3]} 30. Kg1 {[%clk 0:00:06.9]}
30... Rxh2 {[%clk 0:00:10.5]} 31. Kxh2 {[%clk 0:00:06.6]} 31... Qxg5 {[%clk
0:00:10.3]} 32. Rxa7 {[%clk 0:00:06.4]} 32... Qf4+ {[%clk 0:00:09.8]} 33. Kh1
{[%clk 0:00:05.7]} 33... Qf3+ {[%clk 0:00:09.8]} 34. Kh2 {[%clk 0:00:05.8]}
34... Qxd3 {[%clk 0:00:10.6]} 35. Ra8+ {[%clk 0:00:04.7]} 35... Kg7 {[%clk
0:00:09.5]} 36. b4 {[%clk 0:00:03.9]} 36... Kh6 {[%clk 0:00:09.8]} 37. b5 {[%clk
0:00:04]} 37... Qxb5 {[%clk 0:00:09.3]} 38. a4 {[%clk 0:00:02.8]} 38... Qb2+
{[%clk 0:00:09.3]} 39. Kg3 {[%clk 0:00:02.3]} 0-1

[Event "*** SCC Grand Prix: Titled Tuesday Blitz"]
[Site "Chess.com"]
[Date "2020.06.09"]
[Round "7"]
[White "AungTZ"]
[Black "Saloni1299"]
[Result "1-0"]
[WhiteElo "2121"]
[BlackElo "2239"]
[TimeControl "180+1"]
[EndTime "10:19:02 PDT"]
[Termination "AungTZ won by resignation"]

1. e4 {[%clk 0:02:55.1]} 1... e6 {[%clk 0:02:59.5]} 2. d4 {[%clk 0:02:46.7]}
2... d5 {[%clk 0:02:58.6]} 3. Nc3 {[%clk 0:02:46.6]} 3... Bb4 {[%clk 0:02:57.7]}
4. exd5 {[%clk 0:02:45.8]} 4... exd5 {[%clk 0:02:56.5]} 5. Bd3 {[%clk
0:02:45.5]} 5... c6 {[%clk 0:02:55.5]} 6. Ne2 {[%clk 0:02:45.2]} 6... Ne7 {[%clk
0:02:55.7]} 7. O-O {[%clk 0:02:45.1]} 7... Ng6 {[%clk 0:02:54]} 8. a3 {[%clk
0:02:41.5]} 8... Bd6 {[%clk 0:02:53.3]} 9. Ng3 {[%clk 0:02:40.4]} 9... O-O
{[%clk 0:02:53.3]} 10. Nf5 {[%clk 0:02:18]} 10... Bc7 {[%clk 0:02:44.2]} 11. Qf3
{[%clk 0:02:11.2]} 11... Bxf5 {[%clk 0:02:34.9]} 12. Qxf5 {[%clk 0:02:08.6]}
12... Qh4 {[%clk 0:02:34.1]} 13. g3 {[%clk 0:02:05.3]} 13... Qxd4 {[%clk
0:02:32.8]} 14. h4 {[%clk 0:01:58.4]} 14... Qe5 {[%clk 0:02:27.6]} 15. Qf3
{[%clk 0:01:53.8]} 15... Nxh4 {[%clk 0:02:24.5]} 16. Qh1 {[%clk 0:01:41.2]}
16... Ng6 {[%clk 0:02:23.6]} 17. Ne2 {[%clk 0:01:38.5]} 17... Nd7 {[%clk
0:02:18.3]} 18. Bf4 {[%clk 0:01:36.5]} 18... Qxb2 {[%clk 0:01:52.5]} 19. Bxc7
{[%clk 0:01:34.1]} 19... Qf6 {[%clk 0:01:47.5]} 20. Bf4 {[%clk 0:01:26]} 20...
Nde5 {[%clk 0:01:45.8]} 21. Bxe5 {[%clk 0:01:25.1]} 21... Qxe5 {[%clk
0:01:46.7]} 22. Nf4 {[%clk 0:01:23]} 22... Rae8 {[%clk 0:01:44.4]} 23. Rab1
{[%clk 0:01:05.5]} 23... b5 {[%clk 0:01:42.2]} 24. Kg2 {[%clk 0:00:46.3]} 24...
Qf6 {[%clk 0:01:25.6]} 25. Nh5 {[%clk 0:00:40.6]} 25... Qe5 {[%clk 0:01:21.9]}
26. Qh3 {[%clk 0:00:38.2]} 26... f5 {[%clk 0:01:18.3]} 27. Rbe1 {[%clk 0:00:32]}
27... Qxe1 {[%clk 0:01:09.5]} 28. Rxe1 {[%clk 0:00:31.2]} 28... Rxe1 {[%clk
0:01:09.9]} 29. Bxf5 {[%clk 0:00:30.8]} 29... Re2 {[%clk 0:01:07.1]} 30. Kf1
{[%clk 0:00:21.7]} 30... Re5 {[%clk 0:01:03.2]} 31. Bxg6 {[%clk 0:00:20]} 31...
hxg6 {[%clk 0:01:03.1]} 32. Nf4 {[%clk 0:00:20.7]} 32... g5 {[%clk 0:01:01.4]}
33. Nd3 {[%clk 0:00:20.3]} 33... Re7 {[%clk 0:00:57.5]} 34. Qg4 {[%clk
0:00:19.4]} 34... c5 {[%clk 0:00:47.2]} 35. Qxg5 {[%clk 0:00:19.4]} 35... Ref7
{[%clk 0:00:42.6]} 36. Qxd5 {[%clk 0:00:17.9]} 36... c4 {[%clk 0:00:43.3]} 37.
Nf4 {[%clk 0:00:16.6]} 37... g5 {[%clk 0:00:42.2]} 38. Ng6 {[%clk 0:00:16.1]}
38... Re8 {[%clk 0:00:34.3]} 39. Ne5 {[%clk 0:00:16]} 39... Rxe5 {[%clk
0:00:30.9]} 40. Qxe5 {[%clk 0:00:16.9]} 40... Kf8 {[%clk 0:00:31.3]} 41. Qxg5
{[%clk 0:00:16.9]} 41... a6 {[%clk 0:00:30]} 42. Qc5+ {[%clk 0:00:16.3]} 42...
Kg7 {[%clk 0:00:29.4]} 43. g4 {[%clk 0:00:17.2]} 43... Kg6 {[%clk 0:00:27.8]}
44. Kg2 {[%clk 0:00:16.8]} 44... Rf6 {[%clk 0:00:27.7]} 45. Kg3 {[%clk
0:00:16.9]} 45... Re6 {[%clk 0:00:26.1]} 46. f4 {[%clk 0:00:16.7]} 46... Rf6
{[%clk 0:00:23.8]} 47. g5 {[%clk 0:00:14.9]} 47... Rf7 {[%clk 0:00:20.9]} 48.
Kg4 {[%clk 0:00:15]} 1-0

[Event "*** SCC Grand Prix: Titled Tuesday Blitz"]
[Site "Chess.com"]
[Date "2020.06.09"]
[Round "7"]
[White "Chess_Boxer123"]
[Black "yamalchess"]
[Result "1-0"]
[WhiteElo "2712"]
[BlackElo "2444"]
[TimeControl "180+1"]
[EndTime "10:19:03 PDT"]
[Termination "Chess_Boxer123 won on time"]

1. d4 {[%clk 0:03:00.9]} 1... f5 {[%clk 0:02:59.8]} 2. Bg5 {[%clk 0:02:57.5]}
2... Nc6 {[%clk 0:02:57.8]} 3. e3 {[%clk 0:02:53.2]} 3... g6 {[%clk 0:02:55]} 4.
h4 {[%clk 0:02:51.8]} 4... Bg7 {[%clk 0:02:53]} 5. Nc3 {[%clk 0:02:49.7]} 5...
Nh6 {[%clk 0:02:49.9]} 6. Bc4 {[%clk 0:02:48]} 6... Nf7 {[%clk 0:02:47.4]} 7.
Nf3 {[%clk 0:02:46.1]} 7... Nxg5 {[%clk 0:02:42.4]} 8. hxg5 {[%clk 0:02:37.7]}
8... e6 {[%clk 0:02:41.9]} 9. a3 {[%clk 0:02:23.6]} 9... d5 {[%clk 0:02:39.2]}
10. Ba2 {[%clk 0:02:22.7]} 10... a6 {[%clk 0:02:36.1]} 11. Ne2 {[%clk
0:02:18.9]} 11... Qd6 {[%clk 0:02:32.8]} 12. Nf4 {[%clk 0:02:16.4]} 12... Bd7
{[%clk 0:02:29.6]} 13. Nd3 {[%clk 0:02:05.3]} 13... b6 {[%clk 0:02:24.9]} 14.
Nh4 {[%clk 0:01:55.6]} 14... e5 {[%clk 0:01:56.5]} 15. dxe5 {[%clk 0:01:55.2]}
15... Nxe5 {[%clk 0:01:55.6]} 16. Nxe5 {[%clk 0:01:37.2]} 16... Bxe5 {[%clk
0:01:41]} 17. c3 {[%clk 0:01:31.7]} 17... Be6 {[%clk 0:01:28.2]} 18. f4 {[%clk
0:01:24.2]} 18... Bg7 {[%clk 0:01:27.7]} 19. Qd2 {[%clk 0:01:12.6]} 19... Rd8
{[%clk 0:01:22.5]} 20. O-O-O {[%clk 0:01:04.8]} 20... c5 {[%clk 0:01:20.8]} 21.
g4 {[%clk 0:00:48.3]} 21... fxg4 {[%clk 0:01:14.4]} 22. Kb1 {[%clk 0:00:31.2]}
22... O-O {[%clk 0:01:12.8]} 23. Qh2 {[%clk 0:00:25.9]} 23... Rd7 {[%clk
0:01:00.1]} 24. Ka1 {[%clk 0:00:18.8]} 24... d4 {[%clk 0:00:44.6]} 25. Bxe6+
{[%clk 0:00:11.7]} 25... Qxe6 {[%clk 0:00:44.3]} 26. exd4 {[%clk 0:00:10.8]}
26... cxd4 {[%clk 0:00:43.6]} 27. Rde1 {[%clk 0:00:08.5]} 27... Qb3 {[%clk
0:00:41.8]} 28. Nxg6 {[%clk 0:00:08.8]} 28... hxg6 {[%clk 0:00:40.7]} 29. Qh7+
{[%clk 0:00:08.6]} 29... Kf7 {[%clk 0:00:38.7]} 30. f5 {[%clk 0:00:09.3]} 30...
Rd6 {[%clk 0:00:16.1]} 31. fxg6+ {[%clk 0:00:08.4]} 31... Rxg6 {[%clk
0:00:10.7]} 32. Rhf1+ {[%clk 0:00:08.7]} 1-0